[Event "Masters Tournament (MTO)"]
[Site "Biel, Switzerland"]
[Date "2026.07.18"]
[Round "6.25"]
[White "Papaux, Jeremie"]
[Black "Erne, Raphael"]
[Result "1/2-1/2"]
[TimeControl "100+30+30sec/move"]
[WhiteTitle "-"]
[BlackTitle "-"]
[WhiteFideId "1340867"]
[BlackFideId "1341928"]
[WhiteElo "2102"]
[BlackElo "2166"]

1. d4 {[%clk 01:40:43]} {[%emt 00:00:15]} Nf6 {[%emt 00:00:21]} 2. c4 {[%clk
01:41:04]} e6 {[%clk 01:41:06]} {[%emt 00:00:11]} 3. Nf3 {[%clk 01:41:01]}
{[%emt 00:00:33]} Bb4+ {[%clk 01:41:26]} {[%emt 00:00:11]} 4. Bd2 {[%clk
01:41:18]} {[%emt 00:00:13]} Bxd2+ {[%clk 01:41:27]} {[%emt 00:00:29]} 5. Qxd2
{[%clk 01:41:29]} {[%emt 00:00:20]} b6 {[%clk 01:41:44]} {[%emt 00:00:13]} 6.
Nc3 {[%clk 01:38:19]} {[%emt 00:03:39]} Bb7 {[%clk 01:41:57]} {[%emt 00:00:17]}
7. e3 {[%clk 01:35:37]} {[%emt 00:03:12]} d6 {[%clk 01:40:16]} {[%emt
00:02:12]} 8. Bd3 {[%clk 01:34:56]} {[%emt 00:01:11]} Nbd7 {[%clk 01:38:52]}
{[%emt 00:01:53]} 9. e4 {[%clk 01:33:18]} {[%emt 00:02:08]} e5 {[%clk
01:35:25]} {[%emt 00:03:57]} 10. O-O {[%clk 01:33:01]} {[%emt 00:00:46]} O-O
{[%clk 01:29:21]} {[%emt 00:06:35]} 11. d5 {[%clk 01:30:46]} {[%emt 00:02:45]}
Nh5 {[%clk 01:20:59]} {[%emt 00:08:52]} 12. b4 {[%clk 01:29:53]} {[%emt
00:01:23]} Nf4 {[%clk 01:08:41]} {[%emt 00:12:48]} 13. g3 {[%clk 01:28:52]}
{[%emt 00:01:31]} Ng6 {[%clk 01:05:54]} {[%emt 00:03:17]} 14. Nd1 {[%clk
01:25:29]} {[%emt 00:03:53]} a5 {[%clk 01:04:27]} {[%emt 00:01:58]} 15. b5
{[%clk 01:23:36]} {[%emt 00:02:22]} Nc5 {[%clk 01:02:53]} {[%emt 00:02:04]} 16.
Ne3 {[%clk 01:15:48]} {[%emt 00:08:18]} Bc8 {[%clk 01:01:07]} {[%emt 00:02:16]}
17. Kg2 {[%clk 01:14:37]} {[%emt 00:01:40]} Bd7 {[%clk 00:53:17]} {[%emt
00:08:21]} 18. h4 {[%clk 01:11:31]} {[%emt 00:03:35]} Qc8 {[%clk 00:45:40]}
{[%emt 00:08:09]} 19. Rh1 {[%clk 01:11:18]} {[%emt 00:00:42]} Ne7 {[%clk
00:44:45]} {[%emt 00:01:26]} 20. Qc2 {[%clk 01:09:45]} {[%emt 00:02:02]} f5
{[%clk 00:43:02]} {[%emt 00:02:13]} 21. exf5 {[%clk 01:08:57]} {[%emt
00:01:18]} Nxf5 {[%clk 00:39:10]} {[%emt 00:04:22]} 22. Ng5 {[%clk 01:05:46]}
{[%emt 00:03:41]} h6 {[%clk 00:35:25]} {[%emt 00:04:15]} 23. Nxf5 {[%clk
01:03:35]} {[%emt 00:02:40]} Bxf5 {[%clk 00:35:41]} {[%emt 00:00:15]} 24. Ne4
{[%clk 01:03:06]} {[%emt 00:00:58]} Nxd3 {[%clk 00:24:20]} {[%emt 00:11:52]} 25.
Qxd3 {[%clk 01:03:19]} {[%emt 00:00:17]} Bxe4+ {[%clk 00:16:06]} {[%emt
00:08:44]} 26. Qxe4 {[%clk 01:03:38]} {[%emt 00:00:11]} Qf5 {[%clk 00:16:15]}
{[%emt 00:00:21]} 1/2-1/2

[Event "Masters Tournament (MTO)"]
[Site "Biel, Switzerland"]
[Date "2026.07.18"]
[Round "6.26"]
[White "Kudryavtsev, Eugene"]
[Black "Berezovskii, Arina"]
[Result "1/2-1/2"]
[TimeControl "100+30+30sec/move"]
[WhiteTitle "-"]
[BlackTitle "-"]
[WhiteFideId "1315374"]
[BlackFideId "34449850"]
[WhiteElo "2146"]
[BlackElo "1906"]

1. Nf3 {[%clk 01:37:27]} {[%emt 00:03:32]} Nf6 {[%clk 01:40:51]} {[%emt
00:00:10]} 2. c4 {[%clk 01:37:51]} {[%emt 00:00:07]} e6 {[%clk 01:41:15]}
{[%emt 00:00:06]} 3. Nc3 {[%clk 01:38:15]} {[%emt 00:00:05]} b6 {[%clk
01:39:22]} {[%emt 00:02:23]} 4. e4 {[%clk 01:34:52]} {[%emt 00:03:53]} Bb7
{[%clk 01:33:09]} {[%emt 00:06:44]} 5. e5 {[%clk 01:21:54]} {[%emt 00:13:27]}
Ne4 {[%clk 01:32:00]} {[%emt 00:01:39]} 6. Bd3 {[%clk 01:21:22]} {[%emt
00:01:02]} Ng5 {[%clk 01:23:21]} {[%emt 00:09:09]} 7. Be2 {[%clk 01:20:42]}
{[%emt 00:01:10]} Be7 {[%clk 01:12:53]} {[%emt 00:10:59]} 8. d4 {[%clk
01:09:36]} {[%emt 00:11:36]} O-O {[%clk 01:08:46]} {[%emt 00:04:35]} 9. Be3
{[%clk 01:02:16]} {[%emt 00:07:51]} d6 {[%clk 01:06:25]} {[%emt 00:02:51]} 10.
exd6 {[%clk 00:57:31]} {[%emt 00:05:15]} cxd6 {[%clk 01:06:31]} {[%emt
00:00:24]} 11. O-O {[%clk 00:57:34]} {[%emt 00:00:28]} Nd7 {[%clk 01:02:17]}
{[%emt 00:04:43]} 12. Nd2 {[%clk 00:57:16]} {[%emt 00:00:47]} f5 {[%clk
00:58:07]} {[%emt 00:04:41]} 13. f4 {[%clk 00:55:38]} {[%emt 00:02:08]} Nf7
{[%clk 00:56:07]} {[%emt 00:02:30]} 14. Qc2 {[%clk 00:43:30]} {[%emt 00:12:39]}
g6 {[%clk 00:51:16]} {[%emt 00:05:20]} 15. Nf3 {[%clk 00:28:10]} {[%emt
00:15:50]} Bf6 {[%clk 00:48:18]} {[%emt 00:03:28]} 16. Rad1 {[%clk 00:25:36]}
{[%emt 00:03:04]} Bg7 {[%clk 00:46:28]} {[%emt 00:02:20]} 17. h3 {[%clk
00:21:45]} {[%emt 00:04:22]} Re8 {[%clk 00:43:04]} {[%emt 00:03:54]} 18. Rfe1
{[%clk 00:21:02]} {[%emt 00:01:13]} Nf6 {[%clk 00:42:56]} {[%emt 00:00:37]} 19.
c5 {[%clk 00:20:06]} {[%emt 00:01:27]} Ne4 {[%clk 00:37:08]} {[%emt 00:06:17]}
20. Nxe4 {[%clk 00:09:34]} {[%emt 00:11:01]} Bxe4 {[%clk 00:37:01]} {[%emt
00:00:38]} 21. Qb3 {[%clk 00:10:01]} {[%emt 00:00:04]} Bd5 {[%clk 00:34:19]}
{[%emt 00:03:12]} 22. Qa3 {[%clk 00:10:12]} {[%emt 00:00:19]} Qe7 {[%clk
00:32:18]} {[%emt 00:02:30]} 23. b4 {[%clk 00:09:59]} {[%emt 00:00:44]} Qb7
{[%clk 00:28:00]} {[%emt 00:04:47]} 24. Qa4 {[%clk 00:05:25]} {[%emt 00:05:05]}
a5 {[%clk 00:23:25]} {[%emt 00:05:04]} 25. b5 {[%clk 00:03:56]} {[%emt
00:01:59]} dxc5 {[%clk 00:22:36]} {[%emt 00:01:19]} 26. dxc5 {[%clk 00:04:22]}
{[%emt 00:00:04]} bxc5 {[%clk 00:22:47]} {[%emt 00:00:18]} 27. Bxc5 {[%clk
00:04:48]} {[%emt 00:00:05]} Rec8 {[%clk 00:22:15]} {[%emt 00:01:03]} 28. Bd4
{[%clk 00:04:10]} {[%emt 00:01:08]} Nd6 {[%clk 00:19:52]} {[%emt 00:02:52]} 29.
Bxg7 {[%clk 00:01:48]} {[%emt 00:02:52]} Kxg7 {[%clk 00:19:41]} {[%emt
00:00:40]} 30. Qd4+ {[%clk 00:01:56]} {[%emt 00:00:22]} Kg8 {[%clk 00:19:30]}
{[%emt 00:00:42]} 31. a4 {[%clk 00:02:22]} {[%emt 00:00:05]} Ne4 {[%clk
00:18:43]} {[%emt 00:01:17]} 32. Rc1 {[%clk 00:01:46]} {[%emt 00:01:06]} Rxc1
{[%clk 00:16:14]} {[%emt 00:02:58]} 33. Rxc1 {[%clk 00:02:12]} {[%emt
00:00:04]} Rc8 {[%clk 00:16:15]} {[%emt 00:00:30]} 34. Qe3 {[%clk 00:01:39]}
{[%emt 00:01:03]} Rxc1+ {[%clk 00:13:05]} {[%emt 00:03:40]} 35. Qxc1 {[%clk
00:02:07]} {[%emt 00:00:02]} Qb6+ {[%clk 00:12:44]} {[%emt 00:00:50]} 36. Kh2
{[%clk 00:02:33]} {[%emt 00:00:04]} Qf2 {[%clk 00:12:28]} {[%emt 00:00:45]} 37.
Qc8+ {[%clk 00:02:00]} {[%emt 00:01:05]} Kg7 {[%clk 00:12:15]} {[%emt
00:00:42]} 38. Qc7+ {[%clk 00:02:20]} {[%emt 00:00:10]} Kh6 {[%clk 00:10:49]}
{[%emt 00:01:56]} 39. Bd1 {[%clk 00:01:30]} {[%emt 00:01:20]} Qg3+ {[%clk
00:08:05]} {[%emt 00:03:13]} 40. Kg1 {[%clk 00:01:47]} {[%emt 00:00:13]} Qf2+
{[%clk 00:02:07]} {[%emt 00:06:29]} 41. Kh2 {[%clk 00:28:40]} {[%emt 00:03:36]}
Nd2 {[%clk 00:26:26]} {[%emt 00:06:12]} 42. Qd8 {[%clk 00:22:32]} {[%emt
00:06:37]} Bxf3 {[%clk 00:04:14]} {[%emt 00:22:43]} 43. Qg5+ {[%clk 00:22:50]}
{[%emt 00:00:12]} Kg7 {[%clk 00:04:39]} {[%emt 00:00:05]} 44. Qe7+ {[%clk
00:23:15]} {[%emt 00:00:05]} Kg8 {[%clk 00:04:41]} {[%emt 00:00:28]} 45. Qe8+
{[%clk 00:23:39]} {[%emt 00:00:06]} Kg7 {[%clk 00:04:56]} {[%emt 00:00:14]} 46.
Qe7+ {[%clk 00:24:03]} {[%emt 00:00:06]} Kg8 {[%clk 00:05:14]} {[%emt
00:00:13]} 47. Qd8+ {[%emt 00:00:31]} 1/2-1/2

[Event "Masters Tournament (MTO)"]
[Site "Biel, Switzerland"]
[Date "2026.07.18"]
[Round "6.27"]
[White "Yang, Sung-Jui"]
[Black "Kunz, Andre"]
[Result "1/2-1/2"]
[TimeControl "100+30+30sec/move"]
[WhiteTitle "-"]
[BlackTitle "-"]
[WhiteFideId "16301048"]
[BlackFideId "24623652"]
[WhiteElo "1935"]
[BlackElo "2116"]

1. d4 {[%clk 01:33:57]} {[%emt 00:07:02]} Nf6 {[%clk 01:40:46]} {[%emt
00:00:15]} 2. Nf3 {[%clk 01:33:54]} {[%emt 00:00:33]} e6 {[%clk 01:41:08]}
{[%emt 00:00:08]} 3. c4 {[%clk 01:34:20]} {[%emt 00:00:04]} d5 {[%clk
01:41:31]} {[%emt 00:00:06]} 4. Nc3 {[%clk 01:34:42]} {[%emt 00:00:09]} dxc4
{[%clk 01:41:32]} {[%emt 00:00:29]} 5. e3 {[%clk 01:34:53]} {[%emt 00:00:19]}
a6 {[%clk 01:41:32]} {[%emt 00:00:30]} 6. a4 {[%clk 01:30:12]} {[%emt
00:05:11]} c5 {[%clk 01:39:26]} {[%emt 00:02:36]} 7. Bxc4 {[%clk 01:30:35]}
{[%emt 00:00:08]} Nc6 {[%clk 01:39:32]} {[%emt 00:00:23]} 8. O-O {[%clk
01:30:50]} {[%emt 00:00:15]} cxd4 {[%clk 01:39:00]} {[%emt 00:01:03]} 9. exd4
{[%clk 01:31:05]} {[%emt 00:00:15]} Be7 {[%clk 01:39:06]} {[%emt 00:00:23]} 10.
d5 {[%clk 01:29:47]} {[%emt 00:01:48]} exd5 {[%clk 01:37:14]} {[%emt 00:02:23]}
11. Nxd5 {[%clk 01:28:18]} {[%emt 00:01:58]} Nxd5 {[%clk 01:34:15]} {[%emt
00:03:30]} 12. Bxd5 {[%clk 01:28:41]} {[%emt 00:00:07]} O-O {[%clk 01:33:31]}
{[%emt 00:01:14]} 13. Qb3 {[%clk 01:28:59]} {[%emt 00:00:11]} Nb4 {[%clk
01:16:08]} {[%emt 00:17:54]} 14. Bc4 {[%clk 01:27:38]} {[%emt 00:01:50]} Qa5
{[%clk 01:07:47]} {[%emt 00:08:51]} 15. Re1 {[%clk 01:14:42]} {[%emt 00:13:25]}
Nc6 {[%clk 01:06:18]} {[%emt 00:02:00]} 16. Bd2 {[%clk 01:13:30]} {[%emt
00:01:41]} Qc7 {[%clk 00:57:34]} {[%emt 00:09:16]} 17. Rac1 {[%clk 01:11:55]}
{[%emt 00:02:04]} Bf5 {[%clk 00:55:20]} {[%emt 00:02:44]} 18. Ne5 {[%clk
00:43:40]} {[%emt 00:28:45]} 1/2-1/2

[Event "Masters Tournament (MTO)"]
[Site "Biel, Switzerland"]
[Date "2026.07.18"]
[Round "6.28"]
[White "Scherler, Julius"]
[Black "Rappazzo, Johannes"]
[Result "0-1"]
[TimeControl "100+30+30sec/move"]
[WhiteTitle "-"]
[BlackTitle "-"]
[WhiteFideId "1337947"]
[BlackFideId "1340069"]
[WhiteElo "1941"]
[BlackElo "2268"]

1. e4 {[%clk 01:40:23]} {[%emt 00:00:35]} c5 {[%clk 01:40:56]} {[%emt
00:00:05]} 2. Nf3 {[%clk 01:40:36]} {[%emt 00:00:16]} d6 {[%clk 01:41:23]}
{[%emt 00:00:04]} 3. d4 {[%clk 01:40:56]} {[%emt 00:00:09]} cxd4 {[%clk
01:41:50]} {[%emt 00:00:04]} 4. Qxd4 {[%clk 01:40:56]} {[%emt 00:00:28]} Nc6
{[%clk 01:42:18]} {[%emt 00:00:04]} 5. Qe3 {[%clk 01:41:15]} {[%emt 00:00:10]}
Nf6 {[%clk 01:42:43]} {[%emt 00:00:05]} 6. Be2 {[%clk 01:41:23]} {[%emt
00:00:22]} g6 {[%clk 01:43:08]} {[%emt 00:00:06]} 7. h3 {[%clk 01:41:48]}
{[%emt 00:00:05]} Bg7 {[%clk 01:43:34]} {[%emt 00:00:04]} 8. O-O {[%clk
01:42:13]} {[%emt 00:00:04]} O-O {[%clk 01:44:01]} {[%emt 00:00:04]} 9. Rd1
{[%clk 01:42:29]} {[%emt 00:00:13]} Be6 {[%clk 01:44:23]} {[%emt 00:00:08]} 10.
Nc3 {[%clk 01:42:54]} {[%emt 00:00:06]} Rc8 {[%clk 01:44:23]} {[%emt 00:00:30]}
11. a3 {[%clk 01:42:57]} {[%emt 00:00:27]} Qc7 {[%clk 01:44:20]} {[%emt
00:00:32]} 12. Rb1 {[%clk 01:41:25]} {[%emt 00:02:03]} a6 {[%clk 01:43:51]}
{[%emt 00:00:59]} 13. Nd5 {[%clk 01:24:07]} {[%emt 00:17:48]} Bxd5 {[%clk
01:42:55]} {[%emt 00:01:27]} 14. exd5 {[%clk 01:24:23]} {[%emt 00:00:13]} Na5
{[%clk 01:43:02]} {[%emt 00:00:23]} 15. c3 {[%clk 01:23:28]} {[%emt 00:01:25]}
b5 {[%clk 01:39:16]} {[%emt 00:04:16]} 16. b3 {[%clk 00:58:54]} {[%emt
00:25:04]} Qxc3 {[%clk 01:32:09]} {[%emt 00:07:37]} 17. Qb6 {[%clk 00:55:16]}
{[%emt 00:04:08]} Nxb3 {[%clk 01:02:51]} {[%emt 00:29:48]} 18. Bb2 {[%clk
00:52:28]} {[%emt 00:03:18]} Qa5 {[%clk 00:59:49]} {[%emt 00:03:32]} 19. Qe3
{[%clk 00:48:55]} {[%emt 00:04:03]} Nc5 {[%clk 00:59:47]} {[%emt 00:00:32]} 20.
Qxe7 {[%clk 00:46:38]} {[%emt 00:02:47]} Qd8 {[%clk 00:43:28]} {[%emt
00:16:49]} 21. Qe3 {[%clk 00:38:26]} {[%emt 00:08:42]} Re8 {[%clk 00:41:53]}
{[%emt 00:02:06]} 22. Qd2 {[%clk 00:38:39]} {[%emt 00:00:15]} Na4 {[%clk
00:39:32]} {[%emt 00:02:53]} 23. Bd3 {[%clk 00:26:31]} {[%emt 00:12:37]} Nxb2
{[%clk 00:38:27]} {[%emt 00:01:36]} 24. Rxb2 {[%clk 00:26:04]} {[%emt
00:00:56]} Nxd5 {[%clk 00:38:02]} {[%emt 00:00:55]} 25. Rc2 {[%clk 00:26:20]}
{[%emt 00:00:15]} Rxc2 {[%clk 00:35:55]} {[%emt 00:02:37]} 26. Bxc2 {[%clk
00:26:06]} {[%emt 00:00:44]} Nc3 {[%clk 00:35:43]} {[%emt 00:00:42]} 27. Re1
{[%clk 00:25:49]} {[%emt 00:00:47]} Rxe1+ {[%clk 00:31:34]} {[%emt 00:04:39]}
28. Qxe1 {[%clk 00:25:46]} {[%emt 00:00:31]} Bf6 {[%clk 00:27:25]} {[%emt
00:04:40]} 29. Qe3 {[%clk 00:21:30]} {[%emt 00:04:46]} d5 {[%clk 00:25:52]}
{[%emt 00:02:03]} 30. Qa7 {[%clk 00:20:57]} {[%emt 00:01:04]} Qd6 {[%clk
00:24:00]} {[%emt 00:02:23]} 31. h4 {[%clk 00:17:30]} {[%emt 00:03:57]} Qxa3
{[%clk 00:14:23]} {[%emt 00:10:07]} 32. h5 {[%clk 00:17:13]} {[%emt 00:00:46]}
Qc1+ {[%clk 00:13:10]} {[%emt 00:01:43]} 33. Kh2 {[%clk 00:17:38]} {[%emt
00:00:05]} Kg7 {[%clk 00:06:12]} {[%emt 00:07:28]} 34. Qxa6 {[%clk 00:16:45]}
{[%emt 00:01:24]} Qh6 {[%clk 00:06:07]} {[%emt 00:00:35]} 35. g4 {[%clk
00:09:13]} {[%emt 00:08:01]} Qf4+ {[%clk 00:06:15]} {[%emt 00:00:22]} 36. Kg2
{[%clk 00:07:50]} {[%emt 00:01:53]} Qxg4+ {[%clk 00:06:37]} {[%emt 00:00:08]}
37. Kf1 {[%clk 00:08:09]} {[%emt 00:00:10]} Qxf3 {[%clk 00:06:43]} {[%emt
00:00:25]} 38. Kg1 {[%clk 00:07:54]} {[%emt 00:00:45]} Ne2+ {[%clk 00:07:01]}
{[%emt 00:00:12]} 39. Kf1 {[%clk 00:08:10]} {[%emt 00:00:13]} Ng3+ {[%clk
00:07:26]} {[%emt 00:00:07]} 40. Kg1 {[%clk 00:08:30]} {[%emt 00:00:09]} Qh1#
{[%clk 00:07:21]} {[%emt 00:00:04]} 0-1

[Event "Masters Tournament (MTO)"]
[Site "Biel, Switzerland"]
[Date "2026.07.18"]
[Round "6.29"]
[White "Celis, Joel"]
[Black "Kukushkin, Ivan"]
[Result "0-1"]
[TimeControl "100+30+30sec/move"]
[WhiteTitle "-"]
[BlackTitle "-"]
[WhiteFideId "15400212"]
[BlackFideId "11634103"]
[WhiteElo "1981"]
[BlackElo "2257"]

1. d4 {[%clk 01:40:36]} {[%emt 00:00:23]} Nf6 {[%clk 01:40:52]} {[%emt
00:00:09]} 2. Bf4 {[%clk 01:40:05]} {[%emt 00:01:02]} c5 {[%clk 01:38:27]}
{[%emt 00:02:55]} 3. e3 {[%clk 01:40:12]} {[%emt 00:00:23]} e6 {[%clk
01:37:40]} {[%emt 00:01:17]} 4. Nf3 {[%clk 01:39:34]} {[%emt 00:01:07]} d5
{[%clk 01:37:30]} {[%emt 00:00:39]} 5. Nbd2 {[%clk 01:39:40]} {[%emt 00:00:24]}
Nc6 {[%clk 01:37:45]} {[%emt 00:00:16]} 6. c3 {[%clk 01:38:46]} {[%emt
00:01:25]} Nh5 {[%clk 01:31:28]} {[%emt 00:06:46]} 7. Bg5 {[%clk 01:37:28]}
{[%emt 00:01:47]} f6 {[%clk 01:27:57]} {[%emt 00:04:02]} 8. Bh4 {[%clk
01:37:50]} {[%emt 00:00:08]} g6 {[%clk 01:27:59]} {[%emt 00:00:28]} 9. Ne5
{[%clk 01:26:50]} {[%emt 00:11:30]} Be7 {[%clk 01:23:37]} {[%emt 00:04:51]} 10.
Nxc6 {[%clk 01:23:59]} {[%emt 00:03:22]} bxc6 {[%clk 01:23:04]} {[%emt
00:01:03]} 11. Be2 {[%clk 01:13:11]} {[%emt 00:11:18]} Ng7 {[%clk 01:23:27]}
{[%emt 00:00:07]} 12. f4 {[%clk 01:12:13]} {[%emt 00:01:28]} Rb8 {[%clk
01:22:52]} {[%emt 00:01:06]} 13. Qc1 {[%clk 01:03:18]} {[%emt 00:09:24]} Qb6
{[%clk 01:21:49]} {[%emt 00:01:33]} 14. b3 {[%clk 01:02:29]} {[%emt 00:01:18]}
Nf5 {[%clk 01:16:40]} {[%emt 00:05:39]} 15. Bf2 {[%clk 01:00:58]} {[%emt
00:02:02]} Ba6 {[%clk 01:11:03]} {[%emt 00:06:07]} 16. g4 {[%clk 00:54:56]}
{[%emt 00:06:32]} Bxe2 {[%clk 01:11:03]} {[%emt 00:00:30]} 17. Kxe2 {[%clk
00:55:19]} {[%emt 00:00:07]} Nd6 {[%clk 01:10:07]} {[%emt 00:01:25]} 18. Qc2
{[%clk 00:42:28]} {[%emt 00:13:21]} O-O {[%clk 01:07:56]} {[%emt 00:02:42]} 19.
h4 {[%clk 00:37:40]} {[%emt 00:05:17]} Qa6+ {[%clk 01:04:51]} {[%emt 00:03:35]}
20. Qd3 {[%clk 00:27:09]} {[%emt 00:11:01]} c4 {[%clk 01:02:29]} {[%emt
00:02:53]} 21. bxc4 {[%clk 00:27:31]} {[%emt 00:00:08]} Rb2 {[%clk 01:02:47]}
{[%emt 00:00:11]} 22. Kf3 {[%clk 00:20:07]} {[%emt 00:07:54]} dxc4 {[%clk
01:01:49]} {[%emt 00:01:28]} 23. Qe2 {[%clk 00:20:21]} {[%emt 00:00:16]} f5
{[%emt 00:00:18]} 24. Rhb1 {[%clk 00:16:09]} {[%emt 00:04:40]} fxg4+ {[%clk
01:02:28]} {[%emt 00:00:05]} 25. Kxg4 {[%clk 00:15:02]} {[%emt 00:01:37]} Qb5
{[%clk 01:02:00]} {[%emt 00:00:59]} 26. Kh3 {[%clk 00:13:57]} {[%emt 00:01:34]}
Qf5+ {[%clk 01:02:22]} {[%emt 00:00:08]} 27. Kh2 {[%clk 00:13:58]} {[%emt
00:00:29]} Rfb8 {[%clk 01:02:43]} {[%emt 00:00:08]} 28. Qf1 {[%clk 00:02:35]}
{[%emt 00:11:54]} Bxh4 {[%clk 01:01:54]} {[%emt 00:01:19]} 29. Re1 {[%clk
00:00:31]} {[%emt 00:02:34]} Rxd2 {[%clk 01:02:08]} {[%emt 00:00:16]} 0-1